[Event "Titled Tuesday Blitz March 01 Late 2022"]
[White "Miszler, Levente"]
[Black "Csonka, Balazs"]
[WhiteFideId "763276"]
[BlackFideId "742910"]
[WhiteElo "1966"]
[BlackElo "2404"]
[Result "0-1"]
[Round "04"]
[TimeControl "180+1"]
[Date "2022.03.02"]
[WhiteClock "0:00:01"]
[BlackClock "0:00:17"]

1. g4 {[%clk 0:02:54]}  b5 {[%clk 0:02:56]} 2. b4 {[%clk 0:02:53]}  h5 {[%clk 0:02:52]} 3. g5 {[%clk 0:02:51]}  h4 {[%clk 0:02:51]} 4. a4 {[%clk 0:02:44]}  Bb7 {[%clk 0:02:50]} 5. Nf3 {[%clk 0:02:42]}  a6 {[%clk 0:02:49]} 6. Nc3 {[%clk 0:02:37]}  Rh5 {[%clk 0:02:37]} 7. axb5 {[%clk 0:02:31]}  axb5 {[%clk 0:02:37]} 8. Rxa8 {[%clk 0:02:31]}  Bxa8 {[%clk 0:02:38]} 9. Nxb5 {[%clk 0:02:30]}  Bxf3 {[%clk 0:02:38]} 10. exf3 {[%clk 0:02:29]}  Rxg5 {[%clk 0:02:38]} 11. d4 {[%clk 0:02:24]}  Rh5 {[%clk 0:02:24]} 12. f4 {[%clk 0:02:14]}  Nf6 {[%clk 0:02:23]} 13. Be2 {[%clk 0:02:00]}  Rh8 {[%clk 0:02:17]} 14. Be3 {[%clk 0:01:53]}  e6 {[%clk 0:02:02]} 15. O-O {[%clk 0:01:43]}  c6 {[%clk 0:01:58]} 16. Nc3 {[%clk 0:01:41]}  Bxb4 {[%clk 0:01:58]} 17. Qd3 {[%clk 0:01:36]}  d5 {[%clk 0:01:34]} 18. Rb1 {[%clk 0:01:14]}  Bd6 {[%clk 0:01:26]} 19. f5 {[%clk 0:01:01]}  e5 {[%clk 0:01:17]} 20. dxe5 {[%clk 0:00:56]}  Bxe5 {[%clk 0:01:18]} 21. Bb6 {[%clk 0:00:27]}  Qd6 {[%clk 0:00:58]} 22. Bf3 {[%clk 0:00:06]}  Bxh2+ {[%clk 0:00:52]} 23. Kg2 {[%clk 0:00:06]}  Nbd7 {[%clk 0:00:42]} 24. Re1+ {[%clk 0:00:03]}  Kf8 {[%clk 0:00:40]} 25. Bd4 {[%clk 0:00:03]}  Be5 {[%clk 0:00:34]} 26. Bxe5 {[%clk 0:00:03]}  Nxe5 {[%clk 0:00:34]} 27. Qd4 {[%clk 0:00:03]}  h3+ {[%clk 0:00:33]} 28. Kg3 {[%clk 0:00:01]}  Nd3+ {[%clk 0:00:17]} 0-1


[Site "https://www.chess.com"]

[Event "Titled Tuesday Blitz March 01 Late 2022"]
[White "Moral Garcia, Serafin"]
[Black "Burke, Paul"]
[WhiteFideId "2201925"]
[BlackFideId "2605767"]
[WhiteElo "2228"]
[BlackElo "1819"]
[Result "1-0"]
[Round "04"]
[TimeControl "180+1"]
[Date "2022.03.02"]
[WhiteClock "0:01:57"]
[BlackClock "0:01:29"]

1. e4 {[%clk 0:03:00]}  e5 {[%clk 0:02:59]} 2. Nf3 {[%clk 0:03:00]}  Nc6 {[%clk 0:02:59]} 3. Bb5 {[%clk 0:03:00]}  f5 {[%clk 0:02:59]} 4. d3 {[%clk 0:02:59]}  Nf6 {[%clk 0:02:58]} 5. O-O {[%clk 0:02:59]}  Be7 {[%clk 0:02:58]} 6. exf5 {[%clk 0:02:49]}  O-O {[%clk 0:02:57]} 7. Nc3 {[%clk 0:02:45]}  d6 {[%clk 0:02:56]} 8. Bc4+ {[%clk 0:02:32]}  Kh8 {[%clk 0:02:54]} 9. Be6 {[%clk 0:02:32]}  Bxe6 {[%clk 0:02:53]} 10. fxe6 {[%clk 0:02:32]}  h6 {[%clk 0:02:39]} 11. Re1 {[%clk 0:02:26]}  Nd4 {[%clk 0:02:37]} 12. Nxd4 {[%clk 0:02:23]}  exd4 {[%clk 0:02:37]} 13. Ne4 {[%clk 0:02:23]}  Nxe4 {[%clk 0:02:35]} 14. Rxe4 {[%clk 0:02:23]}  c5 {[%clk 0:02:35]} 15. Qh5 {[%clk 0:02:21]}  Qe8 {[%clk 0:02:17]} 16. Qxe8 {[%clk 0:02:17]}  Raxe8 {[%clk 0:02:16]} 17. Bd2 {[%clk 0:02:17]}  Bf6 {[%clk 0:02:10]} 18. Rae1 {[%clk 0:02:15]}  Re7 {[%clk 0:02:09]} 19. c3 {[%clk 0:02:15]}  dxc3 {[%clk 0:02:08]} 20. Bxc3 {[%clk 0:02:14]}  Bxc3 {[%clk 0:02:06]} 21. bxc3 {[%clk 0:02:14]}  b6 {[%clk 0:01:55]} 22. f4 {[%clk 0:02:11]}  d5 {[%clk 0:01:51]} 23. Re5 {[%clk 0:02:10]}  Rxf4 {[%clk 0:01:47]} 24. Rxd5 {[%clk 0:02:10]}  Ra4 {[%clk 0:01:46]} 25. Rd7 {[%clk 0:02:03]}  Re8 {[%clk 0:01:45]} 26. e7 {[%clk 0:02:01]}  Kg8 {[%clk 0:01:44]} 27. Rf1 {[%clk 0:01:57]}  Rxa2 {[%clk 0:01:29]} 28. Rd8 {[%clk 0:01:57]} 1-0


[Site "https://www.chess.com"]

[Event "Titled Tuesday Blitz March 01 Late 2022"]
[White "Muradli, Mahammad"]
[Black "Sadhwani, Raunak"]
[WhiteFideId "13409301"]
[BlackFideId "35093487"]
[WhiteElo "2645"]
[BlackElo "2616"]
[Result "1/2-1/2"]
[Round "04"]
[TimeControl "180+1"]
[Date "2022.03.01"]
[WhiteClock "0:00:03"]
[BlackClock "0:00:04"]

1. c4 {[%clk 0:03:00]}  e5 {[%clk 0:02:59]} 2. d3 {[%clk 0:03:01]}  Nc6 {[%clk 0:02:59]} 3. Nc3 {[%clk 0:03:00]}  Nf6 {[%clk 0:02:57]} 4. g3 {[%clk 0:03:01]}  d5 {[%clk 0:02:57]} 5. cxd5 {[%clk 0:03:02]}  Nxd5 {[%clk 0:02:57]} 6. Bg2 {[%clk 0:03:02]}  Be6 {[%clk 0:02:58]} 7. Nf3 {[%clk 0:03:01]}  Be7 {[%clk 0:02:50]} 8. O-O {[%clk 0:03:00]}  O-O {[%clk 0:02:45]} 9. Bd2 {[%clk 0:02:53]}  f6 {[%clk 0:02:44]} 10. Rc1 {[%clk 0:02:52]}  Qd7 {[%clk 0:02:44]} 11. a3 {[%clk 0:02:50]}  a5 {[%clk 0:02:44]} 12. Qc2 {[%clk 0:02:44]}  Nxc3 {[%clk 0:02:40]} 13. Bxc3 {[%clk 0:02:43]}  Rfd8 {[%clk 0:02:38]} 14. Rfd1 {[%clk 0:02:28]}  a4 {[%clk 0:02:35]} 15. Qb1 {[%clk 0:02:29]}  Nd4 {[%clk 0:02:23]} 16. Bxd4 {[%clk 0:02:22]}  exd4 {[%clk 0:02:24]} 17. Nd2 {[%clk 0:02:22]}  c6 {[%clk 0:02:24]} 18. Bf3 {[%clk 0:02:05]}  Ra5 {[%clk 0:02:08]} 19. Nc4 {[%clk 0:02:04]}  Rb5 {[%clk 0:02:07]} 20. Qc2 {[%clk 0:02:04]}  Ra8 {[%clk 0:02:02]} 21. Rb1 {[%clk 0:01:58]}  Bf8 {[%clk 0:01:54]} 22. Rdc1 {[%clk 0:01:45]}  Qf7 {[%clk 0:01:52]} 23. Qd2 {[%clk 0:01:42]}  h5 {[%clk 0:01:47]} 24. Qf4 {[%clk 0:01:41]}  Rd8 {[%clk 0:01:42]} 25. h4 {[%clk 0:01:40]}  g6 {[%clk 0:01:42]} 26. Qd2 {[%clk 0:01:32]}  Kh7 {[%clk 0:01:34]} 27. Qc2 {[%clk 0:01:26]}  Bh6 {[%clk 0:01:22]} 28. Re1 {[%clk 0:01:18]}  g5 {[%clk 0:01:19]} 29. hxg5 {[%clk 0:01:11]}  Rxg5 {[%clk 0:01:20]} 30. Kg2 {[%clk 0:00:50]}  h4 {[%clk 0:01:19]} 31. Rh1 {[%clk 0:00:37]}  hxg3 {[%clk 0:01:18]} 32. Nd2 {[%clk 0:00:38]}  Bb3 {[%clk 0:00:45]} 33. Qc1 {[%clk 0:00:16]}  gxf2+ {[%clk 0:00:45]} 34. Kxf2 {[%clk 0:00:17]}  Kg7 {[%clk 0:00:46]} 35. Rxh6 {[%clk 0:00:15]}  Kxh6 {[%clk 0:00:43]} 36. Ne4 {[%clk 0:00:15]}  Kg6 {[%clk 0:00:24]} 37. Qf4 {[%clk 0:00:05]}  Rh8 {[%clk 0:00:16]} 38. Nxg5 {[%clk 0:00:04]}  fxg5 {[%clk 0:00:17]} 39. Qxd4 {[%clk 0:00:05]}  Qf6 {[%clk 0:00:12]} 40. Qe4+ {[%clk 0:00:04]}  Kg7 {[%clk 0:00:12]} 41. Rg1 {[%clk 0:00:05]}  Rh6 {[%clk 0:00:04]} 42. Qe3 {[%clk 0:00:05]}  Rg6 {[%clk 0:00:03]} 43. d4 {[%clk 0:00:04]}  Bd5 {[%clk 0:00:03]} 44. Ke1 {[%clk 0:00:04]}  Bxf3 {[%clk 0:00:04]} 45. exf3 {[%clk 0:00:05]}  Qe6 {[%clk 0:00:03]} 46. Kd2 {[%clk 0:00:05]}  Qxe3+ {[%clk 0:00:03]} 47. Kxe3 {[%clk 0:00:06]}  Re6+ {[%clk 0:00:04]} 48. Kd3 {[%clk 0:00:06]}  Kf6 {[%clk 0:00:05]} 49. Rg4 {[%clk 0:00:05]}  Kf5 {[%clk 0:00:05]} 50. d5 {[%clk 0:00:05]}  Rd6 {[%clk 0:00:04]} 51. Rxa4 {[%clk 0:00:06]}  Rxd5+ {[%clk 0:00:04]} 52. Ke3 {[%clk 0:00:07]}  Rb5 {[%clk 0:00:05]} 53. b4 {[%clk 0:00:06]}  c5 {[%clk 0:00:04]} 54. bxc5 {[%clk 0:00:04]}  Rxc5 {[%clk 0:00:05]} 55. Kf2 {[%clk 0:00:03]}  b5 {[%clk 0:00:04]} 1/2-1/2


[Site "https://www.chess.com"]

[Event "Titled Tuesday Blitz March 01 Late 2022"]
[White "Pace, Christopher"]
[Black "Kanyamarala, Trisha"]
[WhiteFideId "2610167"]
[BlackFideId "45004722"]
[WhiteElo "2212"]
[BlackElo "2002"]
[Result "0-1"]
[Round "04"]
[TimeControl "180+1"]
[Date "2022.03.02"]
[WhiteClock "0:00:42"]
[BlackClock "0:00:38"]

1. d4 {[%clk 0:03:00]}  Nf6 {[%clk 0:02:59]} 2. c4 {[%clk 0:02:59]}  e6 {[%clk 0:02:58]} 3. Nf3 {[%clk 0:02:57]}  d5 {[%clk 0:02:57]} 4. Nc3 {[%clk 0:02:56]}  Bb4 {[%clk 0:02:55]} 5. cxd5 {[%clk 0:02:44]}  exd5 {[%clk 0:02:54]} 6. Bg5 {[%clk 0:02:44]}  h6 {[%clk 0:02:53]} 7. Bh4 {[%clk 0:02:43]}  O-O {[%clk 0:02:53]} 8. Rc1 {[%clk 0:02:38]}  Bf5 {[%clk 0:02:50]} 9. e3 {[%clk 0:02:38]}  Nbd7 {[%clk 0:02:49]} 10. Bd3 {[%clk 0:02:36]}  Bxd3 {[%clk 0:02:47]} 11. Qxd3 {[%clk 0:02:37]}  c5 {[%clk 0:02:47]} 12. dxc5 {[%clk 0:02:31]}  Nxc5 {[%clk 0:02:45]} 13. Qd4 {[%clk 0:02:28]}  Bxc3+ {[%clk 0:02:43]} 14. Rxc3 {[%clk 0:02:24]}  Nce4 {[%clk 0:02:43]} 15. Rc2 {[%clk 0:02:06]}  Qa5+ {[%clk 0:02:33]} 16. b4 {[%clk 0:02:04]}  Qa4 {[%clk 0:02:30]} 17. Qb2 {[%clk 0:01:42]}  Rac8 {[%clk 0:02:16]} 18. Rxc8 {[%clk 0:01:34]}  Rxc8 {[%clk 0:02:17]} 19. Nd4 {[%clk 0:01:33]}  Qa6 {[%clk 0:02:10]} 20. f3 {[%clk 0:01:27]}  Qd3 {[%clk 0:01:27]} 21. fxe4 {[%clk 0:01:16]}  Qxe3+ {[%clk 0:01:23]} 22. Ne2 {[%clk 0:01:13]}  Nxe4 {[%clk 0:01:23]} 23. Rf1 {[%clk 0:01:03]}  g5 {[%clk 0:00:44]} 24. Bf2 {[%clk 0:00:50]}  Qd3 {[%clk 0:00:40]} 25. Bxa7 {[%clk 0:00:42]}  Rc2 {[%clk 0:00:38]} 0-1


[Site "https://www.chess.com"]

[Event "Titled Tuesday Blitz March 01 Late 2022"]
[White "Ponkratov, Pavel"]
[Black "Gutenev, Alexander"]
[WhiteFideId "4157800"]
[BlackFideId "4195540"]
[WhiteElo "2487"]
[BlackElo "2403"]
[Result "1-0"]
[Round "04"]
[TimeControl "180+1"]
[Date "2022.03.01"]
[WhiteClock "0:00:33"]
[BlackClock "0:00:10"]

1. c4 {[%clk 0:03:00]}  Nf6 {[%clk 0:02:58]} 2. Nc3 {[%clk 0:03:00]}  d5 {[%clk 0:02:56]} 3. cxd5 {[%clk 0:03:00]}  Nxd5 {[%clk 0:02:57]} 4. g3 {[%clk 0:03:00]}  g6 {[%clk 0:02:57]} 5. Bg2 {[%clk 0:03:00]}  Nxc3 {[%clk 0:02:58]} 6. bxc3 {[%clk 0:03:00]}  Bg7 {[%clk 0:02:58]} 7. h4 {[%clk 0:03:00]}  h5 {[%clk 0:02:58]} 8. Nf3 {[%clk 0:02:59]}  O-O {[%clk 0:02:57]} 9. Ng5 {[%clk 0:02:57]}  c5 {[%clk 0:02:51]} 10. Rb1 {[%clk 0:02:56]}  Nc6 {[%clk 0:02:49]} 11. Qa4 {[%clk 0:02:56]}  Qc7 {[%clk 0:02:24]} 12. Qb5 {[%clk 0:02:55]}  Ne5 {[%clk 0:02:12]} 13. Ba3 {[%clk 0:02:52]}  Bf5 {[%clk 0:02:11]} 14. Rc1 {[%clk 0:02:30]}  Rac8 {[%clk 0:02:04]} 15. O-O {[%clk 0:01:58]}  b6 {[%clk 0:01:50]} 16. d4 {[%clk 0:01:58]}  Bd7 {[%clk 0:01:45]} 17. Qa6 {[%clk 0:01:57]}  Ng4 {[%clk 0:01:34]} 18. Rfd1 {[%clk 0:01:49]}  Bh6 {[%clk 0:01:14]} 19. dxc5 {[%clk 0:01:42]}  bxc5 {[%clk 0:01:12]} 20. Bb7 {[%clk 0:01:38]}  Rb8 {[%clk 0:01:04]} 21. Bd5 {[%clk 0:01:38]}  e6 {[%clk 0:01:02]} 22. Bg2 {[%clk 0:01:35]}  Bb5 {[%clk 0:01:00]} 23. Qd6 {[%clk 0:01:31]}  Qxd6 {[%clk 0:00:50]} 24. Rxd6 {[%clk 0:01:31]}  Bxe2 {[%clk 0:00:35]} 25. Bxc5 {[%clk 0:01:30]}  Rfc8 {[%clk 0:00:35]} 26. Bxa7 {[%clk 0:01:29]}  Rb2 {[%clk 0:00:33]} 27. Ra1 {[%clk 0:01:28]}  Bc4 {[%clk 0:00:29]} 28. a4 {[%clk 0:01:26]}  Bg7 {[%clk 0:00:28]} 29. Ne4 {[%clk 0:01:17]}  f5 {[%clk 0:00:25]} 30. Nd2 {[%clk 0:01:09]}  Bd5 {[%clk 0:00:20]} 31. Bxd5 {[%clk 0:01:07]}  exd5 {[%clk 0:00:21]} 32. Rxd5 {[%clk 0:00:54]}  Bxc3 {[%clk 0:00:20]} 33. Rd1 {[%clk 0:00:54]}  Ra8 {[%clk 0:00:18]} 34. Bd4 {[%clk 0:00:50]}  Rxd2 {[%clk 0:00:17]} 35. Bxc3 {[%clk 0:00:50]}  Rxd1+ {[%clk 0:00:16]} 36. Rxd1 {[%clk 0:00:50]}  Rxa4 {[%clk 0:00:17]} 37. Rd6 {[%clk 0:00:48]}  Kf7 {[%clk 0:00:17]} 38. f3 {[%clk 0:00:47]}  Ra3 {[%clk 0:00:14]} 39. Rc6 {[%clk 0:00:46]}  Ne3 {[%clk 0:00:10]} 40. Bd4 {[%clk 0:00:38]}  Nd5 {[%clk 0:00:10]} 41. Kf2 {[%clk 0:00:35]}  Ra2+ {[%clk 0:00:10]} 42. Ke1 {[%clk 0:00:35]}  Ra3 {[%clk 0:00:10]} 43. Ke2 {[%clk 0:00:34]}  Ra2+ {[%clk 0:00:10]} 44. Ke1 {[%clk 0:00:33]}  Ra3 {[%clk 0:00:10]} 45. Rd6 {[%clk 0:00:34]}  Ne7 {[%clk 0:00:10]} 46. Rf6+ {[%clk 0:00:33]}  Ke8 {[%clk 0:00:10]} 47. Re6 {[%clk 0:00:33]}  Kf7 {[%clk 0:00:10]} 48. Rxe7+ {[%clk 0:00:33]} 1-0


[Site "https://www.chess.com"]

[Event "Titled Tuesday Blitz March 01 Late 2022"]
[White "Romanchuk, Viktor"]
[Black "Wu, Sibo"]
[WhiteFideId "14109271"]
[BlackFideId "8606048"]
[WhiteElo "2242"]
[BlackElo "2316"]
[Result "1-0"]
[Round "04"]
[TimeControl "180+1"]
[Date "2022.03.02"]
[WhiteClock "0:00:42"]
[BlackClock "0:00:01"]

1. d4 {[%clk 0:03:00]}  Nf6 {[%clk 0:02:59]} 2. c4 {[%clk 0:03:00]}  e6 {[%clk 0:02:54]} 3. Nc3 {[%clk 0:03:00]}  c5 {[%clk 0:02:53]} 4. d5 {[%clk 0:03:00]}  exd5 {[%clk 0:02:53]} 5. cxd5 {[%clk 0:03:00]}  d6 {[%clk 0:02:54]} 6. e4 {[%clk 0:03:01]}  g6 {[%clk 0:02:53]} 7. f4 {[%clk 0:03:01]}  Bg7 {[%clk 0:02:49]} 8. Nf3 {[%clk 0:03:01]}  O-O {[%clk 0:02:47]} 9. Be2 {[%clk 0:03:02]}  Nbd7 {[%clk 0:02:44]} 10. O-O {[%clk 0:03:01]}  Re8 {[%clk 0:02:43]} 11. Nd2 {[%clk 0:02:58]}  a6 {[%clk 0:02:33]} 12. a4 {[%clk 0:02:58]}  Rb8 {[%clk 0:02:32]} 13. Kh1 {[%clk 0:02:56]}  c4 {[%clk 0:02:05]} 14. e5 {[%clk 0:02:46]}  dxe5 {[%clk 0:02:01]} 15. Nxc4 {[%clk 0:02:46]}  e4 {[%clk 0:01:42]} 16. Be3 {[%clk 0:02:45]}  Nf8 {[%clk 0:01:19]} 17. Bb6 {[%clk 0:02:33]}  Qd7 {[%clk 0:01:16]} 18. Ba7 {[%clk 0:02:32]}  Ra8 {[%clk 0:00:50]} 19. Nb6 {[%clk 0:02:30]}  Rxa7 {[%clk 0:00:50]} 20. Nxd7 {[%clk 0:02:27]}  N8xd7 {[%clk 0:00:50]} 21. a5 {[%clk 0:02:19]}  b6 {[%clk 0:00:49]} 22. axb6 {[%clk 0:02:13]}  Nxb6 {[%clk 0:00:50]} 23. Ra5 {[%clk 0:02:04]}  Rd8 {[%clk 0:00:45]} 24. Qb3 {[%clk 0:02:03]}  Nbd7 {[%clk 0:00:37]} 25. d6 {[%clk 0:01:38]}  Rb7 {[%clk 0:00:35]} 26. Qa2 {[%clk 0:01:35]}  Rb6 {[%clk 0:00:34]} 27. Bc4 {[%clk 0:01:34]}  Rf8 {[%clk 0:00:32]} 28. Rd1 {[%clk 0:01:34]}  Bb7 {[%clk 0:00:30]} 29. Bxa6 {[%clk 0:01:14]}  Ng4 {[%clk 0:00:19]} 30. Kg1 {[%clk 0:01:04]}  e3 {[%clk 0:00:15]} 31. Bxb7 {[%clk 0:01:01]}  Rxb7 {[%clk 0:00:16]} 32. Ra7 {[%clk 0:00:59]}  Rxa7 {[%clk 0:00:12]} 33. Qxa7 {[%clk 0:01:00]}  Ndf6 {[%clk 0:00:09]} 34. h3 {[%clk 0:00:58]}  Nf2 {[%clk 0:00:08]} 35. Qxe3 {[%clk 0:00:54]}  Nxd1 {[%clk 0:00:08]} 36. Nxd1 {[%clk 0:00:55]}  Nd5 {[%clk 0:00:06]} 37. Qd2 {[%clk 0:00:50]}  Nb6 {[%clk 0:00:06]} 38. Nc3 {[%clk 0:00:49]}  Rd8 {[%clk 0:00:06]} 39. Nb5 {[%clk 0:00:48]}  Nc4 {[%clk 0:00:03]} 40. Qc2 {[%clk 0:00:47]}  Ne3 {[%clk 0:00:02]} 41. Qc7 {[%clk 0:00:46]}  Rf8 {[%clk 0:00:02]} 42. d7 {[%clk 0:00:46]}  Bf6 {[%clk 0:00:01]} 43. Kf2 {[%clk 0:00:46]}  Nf5 {[%clk 0:00:01]} 44. g4 {[%clk 0:00:45]}  Ne7 {[%clk 0:00:01]} 45. Nd6 {[%clk 0:00:42]} 1-0


[Site "https://www.chess.com"]

[Event "Titled Tuesday Blitz March 01 Late 2022"]
[White "Rudzinska, Michalina"]
[Black "Leenhouts, Koen"]
[WhiteFideId "1172883"]
[BlackFideId "1008439"]
[WhiteElo "1904"]
[BlackElo "2409"]
[Result "0-1"]
[Round "04"]
[TimeControl "180+1"]
[Date "2022.03.02"]
[WhiteClock "0:00:33"]
[BlackClock "0:01:09"]

1. Nf3 {[%clk 0:02:56]}  Nf6 {[%clk 0:02:58]} 2. b3 {[%clk 0:02:53]}  d5 {[%clk 0:02:59]} 3. Bb2 {[%clk 0:02:53]}  c6 {[%clk 0:02:59]} 4. e3 {[%clk 0:02:51]}  Nbd7 {[%clk 0:02:58]} 5. d4 {[%clk 0:02:51]}  e6 {[%clk 0:02:59]} 6. Bd3 {[%clk 0:02:50]}  Bd6 {[%clk 0:02:59]} 7. O-O {[%clk 0:02:49]}  O-O {[%clk 0:02:59]} 8. Nbd2 {[%clk 0:02:48]}  b6 {[%clk 0:02:59]} 9. e4 {[%clk 0:02:45]}  dxe4 {[%clk 0:02:58]} 10. Nxe4 {[%clk 0:02:45]}  Nxe4 {[%clk 0:02:58]} 11. Bxe4 {[%clk 0:02:46]}  Bb7 {[%clk 0:02:54]} 12. c4 {[%clk 0:02:42]}  Nf6 {[%clk 0:02:53]} 13. Bc2 {[%clk 0:02:42]}  c5 {[%clk 0:02:52]} 14. Qd3 {[%clk 0:02:42]}  Bxf3 {[%clk 0:02:45]} 15. Qxf3 {[%clk 0:02:40]}  cxd4 {[%clk 0:02:45]} 16. Rad1 {[%clk 0:02:20]}  e5 {[%clk 0:02:44]} 17. Bc1 {[%clk 0:02:20]}  h6 {[%clk 0:02:30]} 18. Qf5 {[%clk 0:02:06]}  Re8 {[%clk 0:02:27]} 19. f4 {[%clk 0:02:04]}  e4 {[%clk 0:02:23]} 20. Rfe1 {[%clk 0:01:48]}  d3 {[%clk 0:02:07]} 21. Bb1 {[%clk 0:01:47]}  Bc5+ {[%clk 0:02:00]} 22. Kh1 {[%clk 0:01:45]}  Qd7 {[%clk 0:01:59]} 23. Qxd7 {[%clk 0:01:36]}  Nxd7 {[%clk 0:02:00]} 24. f5 {[%clk 0:01:25]}  Nf6 {[%clk 0:01:51]} 25. Bd2 {[%clk 0:01:19]}  Ng4 {[%clk 0:01:47]} 26. b4 {[%clk 0:00:57]}  Bd4 {[%clk 0:01:28]} 27. Rc1 {[%clk 0:00:33]}  e3 {[%clk 0:01:11]} 28. Bxe3 {[%clk 0:00:33]}  Bxe3 {[%clk 0:01:09]} 0-1


[Site "https://www.chess.com"]

[Event "Titled Tuesday Blitz March 01 Late 2022"]
[White "Rustemov, Alexander"]
[Black "Landaw, Julian"]
[WhiteFideId "4119002"]
[BlackFideId "2023342"]
[WhiteElo "2786"]
[BlackElo "2312"]
[Result "1-0"]
[Round "04"]
[TimeControl "180+1"]
[Date "2022.03.01"]
[WhiteClock "0:02:02"]
[BlackClock "0:00:55"]

1. d4 {[%clk 0:03:00]}  d5 {[%clk 0:02:58]} 2. c4 {[%clk 0:03:00]}  c6 {[%clk 0:02:58]} 3. Nc3 {[%clk 0:03:00]}  e6 {[%clk 0:02:59]} 4. e3 {[%clk 0:03:00]}  f5 {[%clk 0:02:58]} 5. f4 {[%clk 0:02:59]}  Nf6 {[%clk 0:02:57]} 6. Nf3 {[%clk 0:02:58]}  Bb4 {[%clk 0:02:58]} 7. Bd2 {[%clk 0:02:57]}  O-O {[%clk 0:02:57]} 8. Bd3 {[%clk 0:02:57]}  a6 {[%clk 0:02:54]} 9. O-O {[%clk 0:02:56]}  b5 {[%clk 0:02:33]} 10. Nxd5 {[%clk 0:02:46]}  Nxd5 {[%clk 0:02:33]} 11. cxd5 {[%clk 0:02:44]}  Bxd2 {[%clk 0:02:33]} 12. Qxd2 {[%clk 0:02:44]}  Qxd5 {[%clk 0:02:25]} 13. Rfc1 {[%clk 0:02:42]}  Nd7 {[%clk 0:02:24]} 14. Bc2 {[%clk 0:02:24]}  c5 {[%clk 0:01:49]} 15. dxc5 {[%clk 0:02:20]}  Qxd2 {[%clk 0:01:46]} 16. Nxd2 {[%clk 0:02:20]}  Nxc5 {[%clk 0:01:47]} 17. Bb3 {[%clk 0:02:15]}  Nd3 {[%clk 0:01:38]} 18. Rc2 {[%clk 0:02:10]}  Re8 {[%clk 0:01:16]} 19. Nf3 {[%clk 0:02:06]}  Re7 {[%clk 0:00:56]} 20. Rd1 {[%clk 0:02:04]}  Nb4 {[%clk 0:00:55]} 21. Rd8+ {[%clk 0:02:02]} 1-0


[Site "https://www.chess.com"]

[Event "Titled Tuesday Blitz March 01 Late 2022"]
[White "Sailer, Mike"]
[Black "Okike, David"]
[WhiteFideId "2012901"]
[BlackFideId "8500134"]
[WhiteElo "2109"]
[BlackElo "2232"]
[Result "1-0"]
[Round "04"]
[TimeControl "180+1"]
[Date "2022.03.02"]
[WhiteClock "0:00:06"]
[BlackClock "0:00:54"]

1. d4 {[%clk 0:02:59]}  Nf6 {[%clk 0:02:59]} 2. Nf3 {[%clk 0:02:59]}  e6 {[%clk 0:02:58]} 3. Bf4 {[%clk 0:02:59]}  c5 {[%clk 0:02:57]} 4. e3 {[%clk 0:02:59]}  Qb6 {[%clk 0:02:55]} 5. b3 {[%clk 0:02:59]}  cxd4 {[%clk 0:02:50]} 6. exd4 {[%clk 0:02:59]}  Nd5 {[%clk 0:02:48]} 7. Bd2 {[%clk 0:02:55]}  Nc6 {[%clk 0:02:45]} 8. c3 {[%clk 0:02:53]}  Be7 {[%clk 0:02:43]} 9. Bd3 {[%clk 0:02:53]}  f5 {[%clk 0:02:41]} 10. O-O {[%clk 0:02:51]}  O-O {[%clk 0:02:41]} 11. Re1 {[%clk 0:02:48]}  Nf6 {[%clk 0:02:39]} 12. a4 {[%clk 0:02:47]}  d5 {[%clk 0:02:38]} 13. Bg5 {[%clk 0:02:42]}  h6 {[%clk 0:02:36]} 14. Bxf6 {[%clk 0:02:42]}  Bxf6 {[%clk 0:02:35]} 15. Nbd2 {[%clk 0:02:43]}  Ne7 {[%clk 0:02:34]} 16. Ne5 {[%clk 0:02:42]}  Qc7 {[%clk 0:02:32]} 17. Rc1 {[%clk 0:02:41]}  Nc6 {[%clk 0:02:29]} 18. f4 {[%clk 0:02:39]}  Bd7 {[%clk 0:02:24]} 19. c4 {[%clk 0:02:37]}  Qd6 {[%clk 0:02:22]} 20. Ndf3 {[%clk 0:02:34]}  Nb4 {[%clk 0:02:19]} 21. c5 {[%clk 0:02:22]}  Qe7 {[%clk 0:02:16]} 22. Nxd7 {[%clk 0:02:15]}  Qxd7 {[%clk 0:02:16]} 23. Bb5 {[%clk 0:02:15]}  Qc8 {[%clk 0:02:12]} 24. Qe2 {[%clk 0:02:10]}  Kf7 {[%clk 0:02:04]} 25. Ne5+ {[%clk 0:02:08]}  Bxe5 {[%clk 0:02:03]} 26. Qxe5 {[%clk 0:02:07]}  Nc6 {[%clk 0:02:03]} 27. Bxc6 {[%clk 0:01:43]}  Qxc6 {[%clk 0:02:02]} 28. b4 {[%clk 0:01:40]}  Rfe8 {[%clk 0:02:01]} 29. b5 {[%clk 0:01:40]}  Qd7 {[%clk 0:01:59]} 30. c6 {[%clk 0:01:38]}  bxc6 {[%clk 0:01:58]} 31. Rxc6 {[%clk 0:01:37]}  Rac8 {[%clk 0:01:56]} 32. Rec1 {[%clk 0:01:36]}  Rxc6 {[%clk 0:01:56]} 33. bxc6 {[%clk 0:01:25]}  Qc8 {[%clk 0:01:55]} 34. c7 {[%clk 0:01:25]}  Re7 {[%clk 0:01:55]} 35. Rc6 {[%clk 0:01:22]}  Re8 {[%clk 0:01:32]} 36. h3 {[%clk 0:01:16]}  Re7 {[%clk 0:01:30]} 37. g4 {[%clk 0:01:15]}  g6 {[%clk 0:01:29]} 38. Kg2 {[%clk 0:00:55]}  Re8 {[%clk 0:01:28]} 39. Kf3 {[%clk 0:00:48]}  Re7 {[%clk 0:01:27]} 40. g5 {[%clk 0:00:41]}  hxg5 {[%clk 0:01:23]} 41. fxg5 {[%clk 0:00:41]}  Kg8 {[%clk 0:01:11]} 42. Qf6 {[%clk 0:00:35]}  Rxc7 {[%clk 0:01:10]} 43. Qxg6+ {[%clk 0:00:33]}  Kf8 {[%clk 0:01:09]} 44. Qf6+ {[%clk 0:00:28]}  Kg8 {[%clk 0:01:08]} 45. Rxc7 {[%clk 0:00:16]}  Qxc7 {[%clk 0:01:08]} 46. Qxe6+ {[%clk 0:00:06]}  Kh7 {[%clk 0:01:08]} 47. Qxf5+ {[%clk 0:00:07]}  Kh8 {[%clk 0:01:05]} 48. Qf6+ {[%clk 0:00:07]}  Kh7 {[%clk 0:01:04]} 49. g6+ {[%clk 0:00:07]}  Kh6 {[%clk 0:01:03]} 50. Kg4 {[%clk 0:00:05]}  Qd7+ {[%clk 0:00:57]} 51. Qf5 {[%clk 0:00:05]}  Qxa4 {[%clk 0:00:57]} 52. Qh5+ {[%clk 0:00:05]}  Kg7 {[%clk 0:00:56]} 53. Qh7+ {[%clk 0:00:05]}  Kf6 {[%clk 0:00:54]} 54. Qf7# {[%clk 0:00:06]} 1-0


[Site "https://www.chess.com"]